fUSD/lending_fUSD_20260528
["ID","MTS","AMOUNT","RATE_DAILY","PERIOD"]
[423163689,1779898263000,-151.0,0.0003933,30]
[423163679,1779898263000,-245.213723,0.0003933,30]
[423163670,1779898263000,-151.0,0.0003933,30]
[423163672,1779898263000,-866.453017,0.0003933,30]
[423163674,1779898263000,-532.976663,0.0003933,30]
[423163673,1779898263000,-151.0,0.0003933,30]
[423163677,1779898263000,-532.976663,0.0003933,30]
[423163678,1779898263000,-866.453017,0.0003933,30]
[423163680,1779898263000,-532.976663,0.0003933,30]
[423163682,1779898263000,-532.976663,0.0003933,30]
[423163683,1779898263000,-1254.88839,0.0003933,30]
[423163684,1779898263000,-151.0,0.0003933,30]
[423163681,1779898263000,-151.0,0.0003933,30]
[423163690,1779898263000,-151.0,0.0003933,30]
[423163671,1779898263000,-1710.42265,0.0003933,30]
[423163724,1779898263000,-151.0,0.0003933,30]
[423163710,1779898263000,-301.575484,0.0003933,30]
[423163716,1779898263000,-151.0,0.0003933,30]
[423163751,1779898263000,-297.0,0.00039454,10]
[423163762,1779898263000,-208.97895572,0.00039594,10]
[423163761,1779898263000,-1114.16619173,0.00039581,120]
[423163760,1779898263000,-1589.0,0.00039556,11]
[423163758,1779898263000,-3024.0,0.00039544,5]
[423163752,1779898263000,-529.56,0.00039455,120]
[423163755,1779898263000,-529.56,0.00039505,120]
[423163753,1779898263000,-471.2104,0.000395,120]
[423163759,1779898263000,-529.56,0.00039555,120]
[423163754,1779898263000,-2328.30927666,0.00039502,30]
[423163756,1779898263000,-163.0,0.00039509,11]
[423163757,1779898263000,-250.46341063,0.00039528,120]
[423163764,1779898263000,-1000.0,0.000396,2]
[423163774,1779898263000,-1589.0,0.0003966,11]
[423163763,1779898263000,-309.0,0.000396,2]
[423163773,1779898263000,-399.08622868,0.00039656,2]
[423163772,1779898263000,-16203.12074179,0.00039656,2]
[423163771,1779898263000,-529.56,0.00039655,120]
[423163770,1779898263000,-152.0,0.00039653,120]
[423163765,1779898263000,-315.0,0.000396,2]
[423163769,1779898263000,-150.0,0.00039647,120]
[423163767,1779898263000,-500.0,0.00039606,120]
[423163766,1779898263000,-529.56,0.00039605,120]
[423163768,1779898263000,-33218.9209,0.00039625,2]
[423163776,1779898263000,-180.0,0.0003967,120]
[423163720,1779898263000,-1064.329233,0.0003933,30]
[423163775,1779898263000,-2672.0,0.00039666,120]
[423163745,1779898263000,-1111.29009507,0.000394,120]
[423163746,1779898263000,-273.228731,0.000394,10]
[423163777,1779898263000,-880.0,0.0003967,120]
[423163741,1779898263000,-800.0,0.00039394,14]
[423163747,1779898263000,-350.0,0.00039402,2]
[423163719,1779898263000,-151.0,0.0003933,30]
[423163722,1779898263000,-1064.329233,0.0003933,30]
[423163714,1779898263000,-1064.329233,0.0003933,30]
[423163725,1779898263000,-169.254848,0.0003933,30]
[423163727,1779898263000,-169.254848,0.0003933,30]
[423163737,1779898263000,-800.0,0.00039394,14]
[423163729,1779898263000,-169.254848,0.0003933,30]
[423163726,1779898263000,-151.0,0.0003933,30]
[423163728,1779898263000,-151.0,0.0003933,30]
[423163732,1779898263000,-151.0,0.0003933,30]
[423163731,1779898263000,-151.0,0.0003933,30]
[423163730,1779898263000,-286.312296,0.0003933,30]
[423163718,1779898263000,-151.0,0.0003933,30]
[423163736,1779898263000,-1589.0,0.00039356,11]
[423163733,1779898263000,-13453.90453126,0.00039331,7]
[423163735,1779898263000,-350.0,0.0003935,2]
[423163740,1779898263000,-800.0,0.00039394,14]
[423163739,1779898263000,-800.0,0.00039394,14]
[423163738,1779898263000,-800.0,0.00039394,14]
[423163749,1779898263000,-700.0,0.00039451,60]
[423163748,1779898263000,-200.0,0.00039406,20]
[423163744,1779898263000,-800.0,0.00039394,14]
[423163743,1779898263000,-800.0,0.00039394,14]
[423163750,1779898263000,-1549.0,0.00039452,30]
[423163734,1779898263000,-150.0,0.00039342,120]
[423163742,1779898263000,-800.0,0.00039394,14]
[423163814,1779898264000,-151.0,0.0003967,30]
[423163816,1779898264000,-151.0,0.0003967,30]
[423163820,1779898264000,-151.0,0.0003967,30]
[423163809,1779898264000,-151.0,0.0003967,30]
[423163811,1779898264000,-257.82656,0.0003967,30]
[423163812,1779898264000,-153.322172,0.0003967,30]
[423163813,1779898264000,-151.0,0.0003967,30]
[423163810,1779898264000,-151.0,0.0003967,30]
[423163804,1779898264000,-151.0,0.0003967,30]
[423163818,1779898264000,-151.0,0.0003967,30]
[423163817,1779898264000,-151.0,0.0003967,30]
[423163824,1779898264000,-201.37303,0.0003967,30]
[423163815,1779898264000,-151.0,0.0003967,30]
[423163822,1779898264000,-151.0,0.0003967,30]
[423163832,1779898264000,-471.418946,0.0003967,7]
[423163823,1779898264000,-151.0,0.0003967,30]
[423163833,1779898264000,-432.637886,0.0003967,30]
[423163825,1779898264000,-432.637886,0.0003967,30]
[423163830,1779898264000,-432.637886,0.0003967,30]
[423163826,1779898264000,-151.0,0.0003967,30]
[423163829,1779898264000,-432.637886,0.0003967,30]
[423163828,1779898264000,-290.411815,0.0003967,30]
[423163802,1779898264000,-193.337067,0.0003967,30]
[423163831,1779898264000,-432.637886,0.0003967,30]
[423163819,1779898264000,-151.0,0.0003967,30]
[423163803,1779898264000,-151.0,0.0003967,30]
[423163793,1779898264000,-151.0,0.0003967,30]
[423163808,1779898264000,-206.201788,0.0003967,30]
[423163827,1779898264000,-432.637886,0.0003967,30]
[423163784,1779898264000,-151.0,0.0003967,30]
[423163785,1779898264000,-151.0,0.0003967,30]
[423163779,1779898264000,-159.0,0.0003967,120]
[423163778,1779898264000,-184.0,0.0003967,120]
[423163781,1779898264000,-151.0,0.0003967,30]
[423163780,1779898264000,-151.0,0.0003967,30]
[423163783,1779898264000,-222.220152,0.0003967,30]
[423163782,1779898264000,-151.0,0.0003967,30]
[423163787,1779898264000,-197.284723,0.0003967,20]
[423163788,1779898264000,-151.0,0.0003967,30]
[423163786,1779898264000,-202.015173,0.0003967,30]
[423163806,1779898264000,-151.0,0.0003967,30]
[423163798,1779898264000,-151.0,0.0003967,30]
[423163790,1779898264000,-151.0,0.0003967,30]
[423163794,1779898264000,-151.0,0.0003967,30]
[423163792,1779898264000,-151.0,0.0003967,30]
[423163796,1779898264000,-151.0,0.0003967,30]
[423163789,1779898264000,-191.695608,0.0003967,30]
[423163795,1779898264000,-216.465531,0.0003967,30]
[423163791,1779898264000,-151.0,0.0003967,30]
[423163800,1779898264000,-221.277337,0.0003967,30]
[423163807,1779898264000,-151.0,0.0003967,30]
[423163799,1779898264000,-151.0,0.0003967,30]
[423163805,1779898264000,-151.0,0.0003967,30]
[423163801,1779898264000,-184.760876,0.0003967,30]
[423163797,1779898264000,-151.0,0.0003967,30]
[423163834,1779898264000,-151.0,0.0003967,30]
[423163821,1779898264000,-151.0,0.0003967,30]
[423163837,1779898264000,-151.0,0.0003967,30]
[423163868,1779898264000,-198.314198,0.0003967,30]
[423163872,1779898264000,-198.314198,0.0003967,30]
[423163869,1779898264000,-151.0,0.0003967,30]
[423163873,1779898264000,-471.418946,0.0003967,7]
[423163871,1779898264000,-151.0,0.0003967,30]
[423163870,1779898264000,-198.314198,0.0003967,30]
[423163866,1779898264000,-151.0,0.0003967,30]
[423163875,1779898264000,-267.474973,0.0003967,30]
[423163874,1779898264000,-198.314198,0.0003967,30]
[423163877,1779898264000,-471.418946,0.0003967,7]
[423163881,1779898264000,-198.314198,0.0003967,30]
[423163876,1779898264000,-471.418946,0.0003967,7]
[423163867,1779898264000,-471.418946,0.0003967,7]
[423163878,1779898264000,-198.314198,0.0003967,30]
[423163880,1779898264000,-198.314198,0.0003967,30]
[423163883,1779898264000,-198.314198,0.0003967,30]
[423163884,1779898264000,-198.314198,0.0003967,30]
[423163885,1779898264000,-198.314198,0.0003967,30]
[423163888,1779898264000,-198.314198,0.0003967,30]
[423163882,1779898264000,-198.314198,0.0003967,30]
[423163889,1779898264000,-198.314198,0.0003967,30]
[423163886,1779898264000,-198.314198,0.0003967,30]
[423163891,1779898264000,-151.0,0.0003967,30]
[423163887,1779898264000,-198.314198,0.0003967,30]
[423163890,1779898264000,-198.314206,0.0003967,30]
[423163892,1779898264000,-151.0,0.0003967,30]
[423163879,1779898264000,-471.418938,0.0003967,7]
[423163862,1779898264000,-471.418946,0.0003967,7]
[423163838,1779898264000,-471.418946,0.0003967,7]
[423163865,1779898264000,-471.418946,0.0003967,7]
[423163864,1779898264000,-432.637892,0.0003967,30]
[423163836,1779898264000,-471.418946,0.0003967,7]
[423163835,1779898264000,-432.637886,0.0003967,30]
[423163841,1779898264000,-471.418946,0.0003967,7]
[423163845,1779898264000,-471.418946,0.0003967,7]
[423163842,1779898264000,-432.637886,0.0003967,30]
[423163846,1779898264000,-151.0,0.0003967,30]
[423163844,1779898264000,-432.637886,0.0003967,30]
[423163843,1779898264000,-151.0,0.0003967,30]
[423163839,1779898264000,-432.637886,0.0003967,30]
[423163848,1779898264000,-471.418946,0.0003967,7]
[423163857,1779898264000,-151.0,0.0003967,30]
[423163860,1779898264000,-471.418946,0.0003967,7]
[423163840,1779898264000,-151.0,0.0003967,30]
[423163859,1779898264000,-172.296715,0.0003967,30]
[423163858,1779898264000,-432.637886,0.0003967,30]
[423163863,1779898264000,-151.0,0.0003967,30]
[423163856,1779898264000,-151.0,0.0003967,30]
[423163850,1779898264000,-432.637886,0.0003967,30]
[423163854,1779898264000,-432.637886,0.0003967,30]
[423163855,1779898264000,-151.0,0.0003967,30]
[423163861,1779898264000,-432.637886,0.0003967,30]
[423163853,1779898264000,-151.0,0.0003967,30]
[423163849,1779898264000,-151.0,0.0003967,30]
[423163852,1779898264000,-471.418946,0.0003967,7]
[423163851,1779898264000,-471.418946,0.0003967,7]
[423163847,1779898264000,-432.637886,0.0003967,30]
[423163931,1779898265000,-269.421428,0.0003967,30]
[423163934,1779898265000,-771.277333,0.0003967,30]
[423163929,1779898265000,-203.036872,0.0003967,30]
[423163932,1779898265000,-270.277525,0.0003967,30]
[423163933,1779898265000,-613.690197,0.0003967,30]
[423163924,1779898265000,-270.277525,0.0003967,30]
[423163930,1779898265000,-270.277525,0.0003967,30]
[423163927,1779898265000,-270.277525,0.0003967,30]
[423163925,1779898265000,-151.0,0.0003967,30]
[423163922,1779898265000,-151.0,0.0003967,30]
[423163936,1779898265000,-771.277333,0.0003967,30]
[423163940,1779898265000,-771.277333,0.0003967,30]
[423163935,1779898265000,-269.421428,0.0003967,30]
[423163947,1779898265000,-151.0,0.0003967,30]
[423163938,1779898265000,-269.421428,0.0003967,30]
[423163937,1779898265000,-613.690197,0.0003967,30]
[423163941,1779898265000,-613.690197,0.0003967,30]
[423163945,1779898265000,-151.0,0.0003967,30]
[423163944,1779898265000,-613.690197,0.0003967,30]
[423163943,1779898265000,-771.277333,0.0003967,30]
[423163946,1779898265000,-729.849317,0.0003967,30]
[423163953,1779898265000,-841.867711,0.0003967,30]
[423163942,1779898265000,-269.421428,0.0003967,30]
[423163952,1779898265000,-841.867711,0.0003967,30]
[423163949,1779898265000,-729.849317,0.0003967,30]
[423163923,1779898265000,-171.302303,0.0003967,30]
[423163950,1779898265000,-729.849317,0.0003967,30]
[423163939,1779898265000,-151.0,0.0003967,30]
[423163926,1779898265000,-171.302303,0.0003967,30]
[423163912,1779898265000,-1025.572403,0.0003967,30]
[423163919,1779898265000,-171.302303,0.0003967,30]
[423163894,1779898265000,-151.0,0.0003967,30]
[423163948,1779898265000,-729.849317,0.0003967,30]
[423163897,1779898265000,-151.0,0.0003967,30]
[423163899,1779898265000,-151.0,0.0003967,30]
[423163895,1779898265000,-151.0,0.0003967,30]
[423163902,1779898265000,-151.0,0.0003967,30]
[423163893,1779898265000,-151.0,0.0003967,30]
[423163896,1779898265000,-273.91754,0.0003967,30]
[423163900,1779898265000,-280.054056,0.0003967,30]
[423163898,1779898265000,-151.0,0.0003967,30]
[423163904,1779898265000,-151.0,0.0003967,30]
[423163914,1779898265000,-1025.572403,0.0003967,30]
[423163915,1779898265000,-1025.572403,0.0003967,30]
[423163903,1779898265000,-151.0,0.0003967,30]
[423163909,1779898265000,-1025.572403,0.0003967,30]
[423163907,1779898265000,-1025.572403,0.0003967,30]
[423163911,1779898265000,-1025.572403,0.0003967,30]
[423163905,1779898265000,-218.824284,0.0003967,30]
[423163913,1779898265000,-1025.572403,0.0003967,30]
[423163908,1779898265000,-1025.572403,0.0003967,30]
[423163906,1779898265000,-1025.572403,0.0003967,30]
[423163910,1779898265000,-1025.572403,0.0003967,30]
[423163920,1779898265000,-151.0,0.0003967,30]
[423163917,1779898265000,-1025.57241,0.0003967,30]
[423163921,1779898265000,-171.302303,0.0003967,30]
[423163916,1779898265000,-1025.572403,0.0003967,30]
[423163918,1779898265000,-151.0,0.0003967,30]
[423163928,1779898265000,-151.0,0.0003967,30]
[423163901,1779898265000,-151.0,0.0003967,30]
[423163951,1779898265000,-841.867711,0.0003967,30]
[423163954,1779898265000,-841.867711,0.0003967,30]
[423163985,1779898265000,-151.0,0.00039723,30]
[423163983,1779898265000,-151.0,0.00039723,30]
[423163994,1779898265000,-151.0,0.00039723,30]
[423163990,1779898265000,-151.0,0.00039723,30]
[423164000,1779898265000,-205.660413,0.00039723,30]
[423163993,1779898265000,-151.0,0.00039723,30]
[423163989,1779898265000,-151.783121,0.00039723,30]
[423163992,1779898265000,-151.0,0.00039723,30]
[423163991,1779898265000,-151.0,0.00039723,30]
[423163998,1779898265000,-151.0,0.00039723,30]
[423163995,1779898265000,-151.0,0.00039723,30]
[423163996,1779898265000,-163.542454,0.00039723,30]
[423163999,1779898265000,-151.0,0.00039723,30]
[423163997,1779898265000,-151.0,0.00039723,30]
[423164002,1779898265000,-230.476005,0.00039723,30]
[423164012,1779898265000,-208.97895572,0.00039725,30]
[423164001,1779898265000,-151.0,0.00039723,30]
[423164003,1779898265000,-151.0,0.00039723,30]
[423164009,1779898265000,-152.64908367,0.00039724,120]
[423164011,1779898265000,-1000.0,0.00039724,2]
[423164007,1779898265000,-151.0,0.00039723,30]
[423164006,1779898265000,-151.0,0.00039723,30]
[423164008,1779898265000,-151.0,0.00039723,30]
[423164005,1779898265000,-151.0,0.00039723,30]
[423164010,1779898265000,-1000.0,0.00039724,120]
[423164004,1779898265000,-233.916755,0.00039723,30]
[423163955,1779898265000,-151.0,0.0003967,30]
[423163987,1779898265000,-151.0,0.00039723,30]
[423163981,1779898265000,-151.0,0.00039723,30]
[423164013,1779898265000,-200.0,0.00039725,2]
[423163986,1779898265000,-151.0,0.00039723,30]
[423163988,1779898265000,-151.0,0.00039723,30]
[423163961,1779898265000,-400.0,0.000397,14]
[423163963,1779898265000,-540.99462574,0.000397,2]
[423163958,1779898265000,-200.0,0.000397,16]
[423163960,1779898265000,-463.05931236,0.000397,2]
[423163957,1779898265000,-151.0,0.000397,120]
[423163959,1779898265000,-463.05931236,0.000397,2]
[423163964,1779898265000,-5478.0,0.000397,117]
[423163962,1779898265000,-2000.0,0.000397,7]
[423163965,1779898265000,-771.51137292,0.000397,2]
[423163969,1779898265000,-579.76,0.00039715,2]
[423163968,1779898265000,-529.56,0.00039705,120]
[423163967,1779898265000,-152.0,0.00039703,120]
[423163956,1779898265000,-1054.14677585,0.0003969,30]
[423163977,1779898265000,-202.0,0.00039723,120]
[423163982,1779898265000,-188.395297,0.00039723,30]
[423163984,1779898265000,-151.0,0.00039723,30]
[423163978,1779898265000,-151.0,0.00039723,30]
[423163980,1779898265000,-151.0,0.00039723,30]
[423163966,1779898265000,-771.51137292,0.000397,2]
[423163974,1779898265000,-199.0,0.00039723,120]
[423163979,1779898265000,-151.0,0.00039723,30]
[423163970,1779898265000,-177.940872,0.0003972,14]
[423163971,1779898265000,-151.0,0.0003972,14]
[423163975,1779898265000,-180.0,0.00039723,120]
[423163972,1779898265000,-151.0,0.0003972,14]
[423163976,1779898265000,-307.0,0.00039723,120]
[423163973,1779898265000,-170.823237,0.00039722,14]
[423164050,1779898266000,-1544.0,0.00039725,30]
[423164051,1779898266000,-1544.0,0.00039725,30]
[423164055,1779898266000,-151.0,0.00039725,30]
[423164053,1779898266000,-881.93281491,0.00039725,30]
[423164049,1779898266000,-1544.0,0.00039725,30]
[423164044,1779898266000,-1544.0,0.00039725,30]
[423164047,1779898266000,-1544.0,0.00039725,30]
[423164046,1779898266000,-1544.0,0.00039725,30]
[423164045,1779898266000,-1544.0,0.00039725,30]
[423164038,1779898266000,-1544.0,0.00039725,30]
[423164061,1779898266000,-151.0,0.00039725,30]
[423164062,1779898266000,-151.0,0.00039725,30]
[423164057,1779898266000,-173.5410728,0.00039725,30]
[423164054,1779898266000,-151.0,0.00039725,30]
[423164052,1779898266000,-1544.0,0.00039725,30]
[423164060,1779898266000,-151.0,0.00039725,30]
[423164058,1779898266000,-151.0,0.00039725,30]
[423164065,1779898266000,-151.0,0.00039725,30]
[423164064,1779898266000,-151.0,0.00039725,30]
[423164066,1779898266000,-151.0,0.00039725,30]
[423164063,1779898266000,-245.0,0.00039725,30]
[423164067,1779898266000,-151.0,0.00039725,30]
[423164074,1779898266000,-151.0,0.00039725,30]
[423164072,1779898266000,-151.0,0.00039725,30]
[423164042,1779898266000,-1544.0,0.00039725,30]
[423164056,1779898266000,-151.0,0.00039725,30]
[423164039,1779898266000,-1544.0,0.00039725,30]
[423164028,1779898266000,-1544.0,0.00039725,30]
[423164037,1779898266000,-1544.0,0.00039725,30]
[423164073,1779898266000,-151.0,0.00039725,30]
[423164016,1779898266000,-1544.0,0.00039725,30]
[423164017,1779898266000,-1544.0,0.00039725,30]
[423164015,1779898266000,-1544.0,0.00039725,30]
[423164019,1779898266000,-1544.0,0.00039725,30]
[423164018,1779898266000,-1544.0,0.00039725,30]
[423164014,1779898266000,-1544.0,0.00039725,30]
[423164024,1779898266000,-1544.0,0.00039725,30]
[423164022,1779898266000,-1544.0,0.00039725,30]
[423164020,1779898266000,-1544.0,0.00039725,30]
[423164023,1779898266000,-1544.0,0.00039725,30]
[423164021,1779898266000,-1544.0,0.00039725,30]
[423164040,1779898266000,-1544.0,0.00039725,30]
[423164026,1779898266000,-1544.0,0.00039725,30]
[423164027,1779898266000,-1544.0,0.00039725,30]
[423164036,1779898266000,-1544.0,0.00039725,30]
[423164025,1779898266000,-1544.0,0.00039725,30]
[423164030,1779898266000,-1544.0,0.00039725,30]
[423164033,1779898266000,-1544.0,0.00039725,30]
[423164035,1779898266000,-1544.0,0.00039725,30]
[423164034,1779898266000,-1544.0,0.00039725,30]
[423164031,1779898266000,-1544.0,0.00039725,30]
[423164032,1779898266000,-1544.0,0.00039725,30]
[423164041,1779898266000,-1544.0,0.00039725,30]
[423164048,1779898266000,-1544.0,0.00039725,30]
[423164043,1779898266000,-1544.0,0.00039725,30]
[423164029,1779898266000,-1544.0,0.00039725,30]
[423164070,1779898266000,-151.0,0.00039725,30]
[423164059,1779898266000,-151.0,0.00039725,30]
[423164069,1779898266000,-151.0,0.00039725,30]
[423164109,1779898266000,-415.0,0.00039725,120]
[423164110,1779898266000,-1549.0,0.00039726,30]
[423164112,1779898266000,-50000.0,0.00039726,30]
[423164107,1779898266000,-224.0,0.00039725,120]
[423164108,1779898266000,-216.0,0.00039725,120]
[423164111,1779898266000,-212.77,0.00039726,60]
[423164105,1779898266000,-150.0,0.00039725,6]
[423164113,1779898266000,-300.0,0.00039726,120]
[423164115,1779898266000,-300.0,0.00039726,120]
[423164114,1779898266000,-300.0,0.00039726,120]
[423164106,1779898266000,-236.0,0.00039725,120]
[423164103,1779898266000,-970.48031903,0.00039725,120]
[423164104,1779898266000,-207.0,0.00039725,120]
[423164116,1779898266000,-300.0,0.00039726,120]
[423164118,1779898266000,-300.0,0.00039726,120]
[423164117,1779898266000,-300.0,0.00039726,120]
[423164121,1779898266000,-300.0,0.00039726,120]
[423164130,1779898266000,-300.0,0.00039726,120]
[423164122,1779898266000,-300.0,0.00039726,120]
[423164123,1779898266000,-300.0,0.00039726,120]
[423164128,1779898266000,-300.0,0.00039726,120]
[423164124,1779898266000,-300.0,0.00039726,120]
[423164129,1779898266000,-300.0,0.00039726,120]
[423164125,1779898266000,-300.0,0.00039726,120]
[423164120,1779898266000,-300.0,0.00039726,120]
[423164068,1779898266000,-151.0,0.00039725,30]
[423164119,1779898266000,-300.0,0.00039726,120]
[423164102,1779898266000,-208.97895572,0.00039725,7]
[423164126,1779898266000,-300.0,0.00039726,120]
[423164095,1779898266000,-152.0,0.00039725,30]
[423164076,1779898266000,-151.0,0.00039725,30]
[423164075,1779898266000,-151.0,0.00039725,30]
[423164071,1779898266000,-151.0,0.00039725,30]
[423164081,1779898266000,-214.96862186,0.00039725,30]
[423164083,1779898266000,-152.0,0.00039725,30]
[423164077,1779898266000,-151.0,0.00039725,30]
[423164082,1779898266000,-152.0,0.00039725,30]
[423164101,1779898266000,-208.97895572,0.00039725,120]
[423164078,1779898266000,-151.0,0.00039725,30]
[423164127,1779898266000,-300.0,0.00039726,120]
[423164085,1779898266000,-152.0,0.00039725,30]
[423164079,1779898266000,-151.0,0.00039725,30]
[423164080,1779898266000,-151.0,0.00039725,30]
[423164084,1779898266000,-152.0,0.00039725,30]
[423164088,1779898266000,-152.0,0.00039725,30]
[423164096,1779898266000,-253.38749672,0.00039725,30]
[423164086,1779898266000,-152.0,0.00039725,30]
[423164090,1779898266000,-152.0,0.00039725,30]
[423164099,1779898266000,-1404.02562,0.00039725,117]
[423164093,1779898266000,-152.0,0.00039725,30]
[423164100,1779898266000,-1404.02563,0.00039725,117]
[423164098,1779898266000,-248.48877183,0.00039725,30]
[423164091,1779898266000,-152.0,0.00039725,30]
[423164097,1779898266000,-154.0,0.00039725,30]
[423164092,1779898266000,-152.0,0.00039725,30]
[423164089,1779898266000,-152.0,0.00039725,30]
[423164087,1779898266000,-152.0,0.00039725,30]
[423164094,1779898266000,-152.0,0.00039725,30]
[423164167,1779898267000,-214.88671183,0.00039744,120]
[423164172,1779898267000,-602.995536,0.00039756,30]
[423164170,1779898267000,-151.0,0.00039756,30]
[423164168,1779898267000,-529.56,0.00039755,120]
[423164169,1779898267000,-151.0,0.00039756,30]
[423164158,1779898267000,-300.0,0.00039726,120]
[423164166,1779898267000,-221.09502105,0.00039744,120]
[423164160,1779898267000,-300.0,0.00039726,120]
[423164155,1779898267000,-300.0,0.00039726,120]
[423164157,1779898267000,-300.0,0.00039726,120]
[423164165,1779898267000,-214.88671183,0.00039743,120]
[423164176,1779898267000,-602.995536,0.00039756,30]
[423164184,1779898267000,-602.995536,0.00039756,30]
[423164177,1779898267000,-602.995536,0.00039756,30]
[423164175,1779898267000,-602.995536,0.00039756,30]
[423164173,1779898267000,-602.995536,0.00039756,30]
[423164171,1779898267000,-151.0,0.00039756,30]
[423164179,1779898267000,-455.373379,0.00039756,30]
[423164180,1779898267000,-455.373379,0.00039756,30]
[423164178,1779898267000,-151.0,0.00039756,30]
[423164182,1779898267000,-602.995536,0.00039756,30]
[423164181,1779898267000,-455.373379,0.00039756,30]
[423164188,1779898267000,-455.373379,0.00039756,30]
[423164187,1779898267000,-151.0,0.00039756,30]
[423164162,1779898267000,-346.43,0.00039731,120]
[423164174,1779898267000,-602.995536,0.00039756,30]
[423164161,1779898267000,-300.0,0.00039726,120]
[423164147,1779898267000,-300.0,0.00039726,120]
[423164163,1779898267000,-161.28,0.0003974,120]
[423164185,1779898267000,-455.373379,0.00039756,30]
[423164133,1779898267000,-300.0,0.00039726,120]
[423164136,1779898267000,-300.0,0.00039726,120]
[423164138,1779898267000,-300.0,0.00039726,120]
[423164132,1779898267000,-300.0,0.00039726,120]
[423164131,1779898267000,-300.0,0.00039726,120]
[423164135,1779898267000,-300.0,0.00039726,120]
[423164134,1779898267000,-300.0,0.00039726,120]
[423164137,1779898267000,-300.0,0.00039726,120]
[423164139,1779898267000,-300.0,0.00039726,120]
[423164141,1779898267000,-300.0,0.00039726,120]
[423164140,1779898267000,-300.0,0.00039726,120]
[423164159,1779898267000,-300.0,0.00039726,120]
[423164142,1779898267000,-300.0,0.00039726,120]
[423164144,1779898267000,-300.0,0.00039726,120]
[423164152,1779898267000,-300.0,0.00039726,120]
[423164149,1779898267000,-300.0,0.00039726,120]
[423164146,1779898267000,-300.0,0.00039726,120]
[423164151,1779898267000,-300.0,0.00039726,120]
[423164145,1779898267000,-300.0,0.00039726,120]
[423164150,1779898267000,-300.0,0.00039726,120]
[423164148,1779898267000,-300.0,0.00039726,120]
[423164164,1779898267000,-1933.98040651,0.00039743,120]
[423164153,1779898267000,-300.0,0.00039726,120]
[423164154,1779898267000,-300.0,0.00039726,120]
[423164156,1779898267000,-300.0,0.00039726,120]
[423164143,1779898267000,-300.0,0.00039726,120]
[423164186,1779898267000,-455.373379,0.00039756,30]
[423164192,1779898267000,-455.373379,0.00039756,30]
[423164246,1779898267000,-896.806125,0.00039756,30]
[423164218,1779898267000,-287.57776,0.00039756,30]
[423164222,1779898267000,-1144.19676,0.00039756,7]
[423164220,1779898267000,-1144.19676,0.00039756,7]
[423164221,1779898267000,-1144.19676,0.00039756,7]
[423164225,1779898267000,-526.540791,0.00039756,30]
[423164235,1779898267000,-526.540791,0.00039756,30]
[423164236,1779898267000,-526.540791,0.00039756,30]
[423164224,1779898267000,-1144.196753,0.00039756,7]
[423164226,1779898267000,-526.540791,0.00039756,30]
[423164228,1779898267000,-526.540791,0.00039756,30]
[423164227,1779898267000,-526.540791,0.00039756,30]
[423164230,1779898267000,-526.540791,0.00039756,30]